Cogmind - Beta 12 @@@ ROGUE MODE // 2023.10.27 @ 22:25:14 Player: Gamma Result: Destroyed by S-27 Virus with Autogun Performance ------------- Evolutions (5) 2500 Regions Visited (19) 3800 Robots Destroyed (140) 700 Value Destroyed (6457) 6457 Prototype IDs (33) 660 Alien Tech Used (0) 0 Bonus (4899) 4899 TOTAL SCORE: 19016 Bonus ------- High Alert Combat Kills 328 Follower Combat Kills 811 Entered Garrisons 1000 Used RIF Installer 2500 Aligned with FarCom 300 Friendly Fire -40 Cogmind --------- Core Integrity 0/1000 Matter 240/300 Energy 99/100 System Corruption 0% Temperature Cool (0) Movement Core (50) Location -5/Upper Caves Parts ------- > --- POWER (2) -------- (None) > --- PROPULSION (3) --- (None) > --- UTILITY (10) ----- Armor Integrity Analyzer Relay Coupler [NC] (26) Improved Corruption Screen > --- WEAPON (2) ------- (None) > --- INVENTORY (5) ---- Wheel Linear Gravjet Remote Datajack Improved Remote Datajack Peak State ------------ > --- POWER ------------ Micro Fission Core > --- PROPULSION ------- Armored Huge Wheel Nuclear Pulse Thruster > --- UTILITY ---------- Experimental Heat Sink Medium Storage Unit Armor Integrity Analyzer Relay Coupler [NC] Relay Coupler [Grunt] Relay Coupler [Duelist] Relay Coupler [Sentry] Relay Coupler [Specialist] Improved Corruption Screen > --- WEAPON ----------- Long-range Proton Cannon KE Penetrator > --- INVENTORY -------- Improved Treads Antigrav System Remote Shield Remote Shield Improved Arc Projector Improved Arc Projector Remote Datajack Remote Datajack Improved Remote Datajack [Rating: 69] Favorites ----------- Power Ion Engine Engine Ion Engine Power Core Light Nuclear Core Propulsion Light Treads Treads Light Treads Leg Aluminum Leg Wheel Armored Huge Wheel Hover Unit Antigrav System Flight Unit Nuclear Pulse Thruster Utility Large Storage Unit Device Cooling System Storage Large Storage Unit Processor Terrain Scan Processor Hackware Relay Coupler [NC] Protection Hardened Light Armor Plating Weapon Particle Cannon Energy Gun EM Pulse Gun Energy Cannon Particle Cannon Ballistic Gun Gauss Rifle Ballistic Cannon Flak Cannon Launcher Rocket Launcher Special Weapon Remote Datajack Slashing Weapon Longsword +1 Special Melee Weapon Datajack Build | -11 -10 -10 -10 -9 -8 -8 -8 -8 -7 -7 -7 -7 -7 -7 -6 -6 -5 -5 -5 ------- Run | Jun Mat Min Exi Min Mat Gar Mat Gar Fac Was Fac Gar Fac Gar Fac Gar Fac Upp Upp Slots Evolved 10 | . . . . . 4 . . . 2 . . . . . 2 . 2 . . Power 1 | . . . . . . . . . . . . . . . 1 . . . . Propulsion 1 | . . . . . 1 . . . . . . . . . . . . . . Utility 8 | . . . . . 3 . . . 2 . . . . . 1 . 2 . . Weapon . | . . . . . . . . . . . . . . . . . . . . Parts Attached 194 | 7 6 . . 4 19 13 15 23 12 . 3 16 16 17 3 13 21 5 1 Power 10 | 1 . . . . . . . 2 . . . 1 1 1 . 2 2 . . Engine 5 | 1 . . . . . . . 1 . . . . 1 . . 2 . . . Core 5 | . . . . . . . . 1 . . . 1 . 1 . . 2 . . Reactor . | . . . . . . . . . . . . . . . . . . . . Propulsion 36 | 2 2 . . 1 4 1 3 4 2 . . 1 5 2 2 . 6 1 . Treads 15 | . 2 . . 1 4 1 3 4 . . . . . . . . . . . Leg 6 | 2 . . . . . . . . . . . . 1 2 1 . . . . Wheel 9 | . . . . . . . . . 2 . . 1 3 . 1 . 2 . . Hover 3 | . . . . . . . . . . . . . 1 . . . 1 1 . Flight 3 | . . . . . . . . . . . . . . . . . 3 . . Utility 65 | 2 2 . . 1 4 5 5 6 6 . 2 10 6 3 1 3 7 1 1 Device 17 | 1 1 . . 1 1 1 1 2 3 . 1 . 1 1 . 1 1 . 1 Storage 4 | 1 1 . . . . . . . 1 . . . . . . . 1 . . Processor 6 | . . . . . 1 1 . . 1 . . . 1 . . . 2 . . Hackware 17 | . . . . . . 1 2 2 1 . . 4 3 . . 1 3 . . Protection 21 | . . . . . 2 2 2 2 . . 1 6 1 2 1 1 . 1 . Artifact . | . . . . . . . . . . . . . . . . . . . . Weapon 83 | 2 2 . . 2 11 7 7 11 4 . 1 4 4 11 . 8 6 3 . Energy Gun 4 | 1 . . . . . . . . . . . . . . . . 1 2 . Energy Cannon 23 | . 2 . . . 6 3 3 5 1 . . 1 . . . . 2 . . Ballistic Gun 9 | 1 . . . . . . . . . . . . 2 2 . 2 2 . . Ballistic Cannon 2 | . . . . . . 1 . 1 . . . . . . . . . . . Launcher 20 | . . . . 2 5 3 1 3 . . . . . 5 . 1 . . . Special Weapon 12 | . . . . . . . . . 1 . . 2 1 3 . 3 1 1 . Impact Weapon . | . . . . . . . . . . . . . . . . . . . . Slashing Weapon 6 | . . . . . . . . 1 1 . . . 1 1 . 2 . . . Piercing Weapon . | . . . . . . . . . . . . . . . . . . . . Special Melee Weapon 7 | . . . . . . . 3 1 1 . 1 1 . . . . . . . Unidentified Prototypes 2 | . . . . . . . . . . . . . 1 . . . 1 . . Corrupted Parts 2 | . . . . 2 . . . . . . . . . . . . . . . System Corruption 2 | . . . . 2 . . . . . . . . . . . . . . . Parts Lost 64 | . . . . . 1 2 4 9 3 . . 9 3 4 . 16 . 9 4 Power 8 | . . . . . . . . 2 . . . 1 . 1 . 3 . 1 . Propulsion 18 | . . . . . 1 . 2 1 2 . . 3 2 2 . 2 . 3 . Utility 24 | . . . . . . 1 2 4 1 . . 3 . . . 6 . 3 4 Weapon 14 | . . . . . . 1 . 2 . . . 2 1 1 . 5 . 2 . Highest Loss Streak 12 | . . . . . 1 1 1 3 1 . . 3 1 2 . 12 . 3 4 To Critical Strikes 1 | . . . . . . . . . . . . 1 . . . . . . . Average Slot Usage (%) 90 | . 99 100 100 100 96 99 89 97 89 100 100 91 90 88 84 71 70 62 31 Engine 6 | . 14 14 14 14 9 9 9 7 . . . . 6 1 . 3 . . . Core 1 | . . . . . . . . 1 7 7 7 6 . . 6 . 3 3 . Treads 14 | . 25 28 28 28 26 27 20 25 13 7 7 3 . . . . . . . Wheel 4 | . . . . . . . . . 4 15 15 14 13 7 8 5 3 6 . Device 8 | . 14 14 14 14 11 14 11 15 10 15 15 3 . . . . 3 5 4 Storage 8 | . 14 14 14 14 9 9 9 9 7 7 7 7 7 7 6 5 4 3 . Processor 2 | . . . . . 9 6 . . 2 . . . 3 . . . 6 11 11 Hackware 16 | . . . . . . 2 11 8 19 23 23 29 39 38 33 29 29 22 14 Protection 6 | . . . . . 12 12 10 12 7 7 7 8 2 5 7 13 . 2 . Energy Cannon 9 | . 4 28 28 22 17 13 15 13 11 . . 1 . . . . 2 . . Ballistic Gun 2 | . 11 . . . . . . . . . . . 5 5 6 2 3 1 . Special Weapon 1 | . . . . . . . . . 1 7 . 2 1 3 6 4 1 . . Slashing Weapon 1 | . . . . . . . . . 1 7 7 7 6 1 . 3 . . . Naked Turns . | . . . . . . . . . . . . . . . . . . . . Heaviest Build 96 | 15 35 35 35 35 40 41 44 49 65 62 62 88 94 82 76 96 29 32 5 Greatest Support 65 | 20 40 40 40 40 60 60 62 65 63 26 26 38 40 28 44 44 38 38 3 Greatest Overweight (x) 5 | 1 . . . . . . 1 1 2 2 2 5 4 5 4 3 1 3 1 Average Overweight (x) . | . . . . . . . . . 1 2 2 1 1 3 2 1 . . . Largest Inventory Capacity 20 | 8 15 15 15 15 15 15 15 15 20 20 20 20 20 20 20 20 10 10 5 Average Capacity 15 | 7 11 15 15 15 15 15 15 15 15 20 20 20 20 20 20 18 9 8 5 Most Carried 20 | 7 15 15 15 15 15 15 14 15 18 20 20 20 20 20 19 19 10 10 5 Average Carried 14 | 4 10 15 14 15 14 14 11 13 14 18 20 17 18 19 19 16 8 8 4 Final Capacity 20 | 8 15 15 15 15 15 15 15 15 20 20 20 20 20 20 20 5 10 5 5 Final Carried 20 | 7 15 15 15 15 15 12 14 14 18 20 20 16 20 19 19 5 10 5 4 Class Distribution -------------------- 49% | Mutant 26% | Bothacker-Mutant 9% | Botlord-Mutant 6% | Skirmisher 6% | Scavenger-Mutant Dominant Class ---------------- Mutant | -10/Materials Mutant | -10/Mines Mutant | -10/Exiles Mutant | -9/Mines Skirmisher | -8/Materials Scavenger-Mutant | -8/Garrison Mutant | -8/Materials Mutant | -8/Garrison Bothacker-Mutant | -7/Factory Bothacker-Mutant | -7/Waste Bothacker-Mutant | -7/Factory Bothacker-Mutant | -7/Garrison Mutant | -7/Factory Botlord-Mutant | -7/Garrison Botlord-Mutant | -6/Factory Botlord-Mutant | -6/Garrison Bothacker-Mutant | -5/Factory Bothacker-Mutant | -5/Upper Caves Mutant | -5/Upper Caves Resources | -11 -10 -10 -10 -9 -8 -8 -8 -8 -7 -7 -7 -7 -7 -7 -6 -6 -5 -5 -5 ----------- Run | Jun Mat Min Exi Min Mat Gar Mat Gar Fac Was Fac Gar Fac Gar Fac Gar Fac Upp Upp Matter Collected 3540 | 297 132 . . . 290 215 273 442 150 12 . 293 507 226 . 429 193 81 . Remotely . | . . . . . . . . . . . . . . . . . . . . Salvage Created 4630 | 71 282 179 . 3 462 326 380 735 376 . . 180 705 356 . 294 103 178 . Parts 253 | 8 22 7 . 5 16 23 27 39 19 . . 7 38 14 . 12 9 7 . Haulers Intercepted 3 | . 1 . . . 2 . . . . . . . . . . . . . . Recyclers Shooed 3 | 1 . . . . . . . . . . . . . . . . 2 . . Parts Field Recycled . | . . . . . . . . . . . . . . . . . . . . Retrieved Matter . | . . . . . . . . . . . . . . . . . . . . Parts Self-Destructed 9 | . . . . . . . . . . . . . . . . . . 9 . Prevented . | . . . . . . . . . . . . . . . . . . . . Kills | -11 -10 -10 -10 -9 -8 -8 -8 -8 -7 -7 -7 -7 -7 -7 -6 -6 -5 -5 -5 ------- Run | Jun Mat Min Exi Min Mat Gar Mat Gar Fac Was Fac Gar Fac Gar Fac Gar Fac Upp Upp Combat Hostiles Destroyed 111 | . 7 4 . 3 9 13 6 22 7 . . 5 8 14 . 6 1 6 . Melee 18 | . . . . . . . . 1 . . . 5 7 . . 5 . . . Guns 17 | . 7 . . . . . . . . . . . 1 2 . 1 1 5 . Cannons 41 | . . 4 . . 4 8 5 13 7 . . . . . . . . . . AOE 35 | . . . . 3 5 5 1 8 . . . . . 12 . . . 1 . Classes Destroyed 15 | 1 6 . . . 4 1 . 1 1 . . 1 . . . . . . . Worker 7 | . 1 . . . . . . . 2 . . . 3 . . . 1 . . Builder 3 | . 1 . . . . . 1 . . . . . . . . . 1 . . Tunneler 5 | 3 . 1 . . . . . . . . . . 1 . . . . . . Hauler 3 | . 1 . . . 2 . . . . . . . . . . . . . . Recycler 5 | . . . . . 1 . 1 . . . . . 3 . . . . . . Operator 3 | . . . . . 1 . 1 . . . . . 1 . . . . . . Watcher 3 | . 2 . . . . . 1 . . . . . . . . . . . . Swarmer 29 | . 5 . . 3 . 3 1 6 . . . 2 1 2 . 1 . 5 . Cutter 3 | . . . . . . 3 . . . . . . . . . . . . . Grunt 51 | . 2 4 . . 6 7 2 8 4 . . 1 2 11 . 3 . 1 . Brawler 3 | . . . . . . . . . . . . 1 . 1 . 1 . . . Duelist 3 | . . . . . . . . 2 . . . . 1 . . . . . . Sentry 8 | . . . . . 2 . 2 4 . . . . . . . . . . . Hunter 5 | . . . . . 1 . 1 2 . . . . 1 . . . . . . Programmer 9 | . . . . . . . . . 3 . . 1 3 . . 1 1 . . Best Kill Streak 8 | 2 5 2 . 3 5 4 3 4 2 . . 2 5 8 . 3 1 6 . Combat Bots Only 8 | . 4 2 . 3 3 4 2 4 2 . . 2 3 8 . 3 1 6 . Max Kills in Single Turn 4 | 1 1 1 . 3 4 2 2 2 1 . . 1 1 3 . 1 1 2 . Gunslinging 1 | . . . . . . . . . . . . . . . . . . 1 . Exploded 3 | . . . . 3 2 2 1 2 . . . . . 3 . . . 1 . Melee 1 | . . . . . . . . 1 . . . 1 1 . . 1 . . . Uniques/NPCs Destroyed . | . . . . . . . . . . . . . . . . . . . . Combat | -11 -10 -10 -10 -9 -8 -8 -8 -8 -7 -7 -7 -7 -7 -7 -6 -6 -5 -5 -5 -------- Run | Jun Mat Min Exi Min Mat Gar Mat Gar Fac Was Fac Gar Fac Gar Fac Gar Fac Upp Upp Damage Taken 9830 | . 242 154 . 62 313 676 337 1220 469 . . 917 1050 473 . 1737 206 1299 675 Core 2414 | . 28 31 . . 36 45 6 81 28 . . 185 277 69 . 620 58 392 558 Absorbed by Shields 484 | . . . . . . . . 313 47 . . 53 . 4 . 55 . . 12 Core Remaining (%) 58 | 100 . . . 76 . . . 69 . . . . . 20 . 27 . . . Volleys Fired 361 | 9 26 15 . 3 32 33 20 60 30 . . 13 38 20 . 24 21 17 . Largest 2 | 2 2 2 . 2 2 2 2 2 2 . . 1 2 2 . 1 2 2 . Hottest 136 | 60 136 136 . 68 136 136 136 120 120 . . 5 58 72 . 28 114 98 . Shots Fired 561 | 16 51 26 . 5 67 46 37 100 54 . . 13 41 30 . 24 25 26 . Gun 154 | 16 48 . . . . . . . . . . . 32 9 . 7 18 24 . Cannon 308 | . 3 26 . 1 58 38 36 92 48 . . . . . . . 6 . . Launcher 45 | . . . . 4 9 8 1 8 . . . . . 15 . . . . . Special 54 | . . . . . . . . . 6 . . 13 9 6 . 17 1 2 . Kinetic 121 | 9 24 . . . . 8 . 2 . . . . 32 9 . 7 18 12 . Thermal 292 | . 3 26 . 1 58 30 36 90 48 . . . . . . . . . . Explosive 45 | . . . . 4 9 8 1 8 . . . . . 15 . . . . . Electromagnetic 49 | 7 24 . . . . . . . . . . . . . . . 6 12 . Robot Hit Streak 14 | 3 6 12 . . 6 5 8 14 9 . . 6 4 7 . 9 10 5 . Robot Miss Streak 7 | 3 2 1 . 3 4 3 4 7 3 . . 2 3 1 . 1 3 3 . Penetration Max 1 | . . . . . . . . . . . . . . . . . . 1 . Secondary Targets 1 | . . . . . . . . . . . . . . . . . . 1 . Max Gunslinging Chain 1 | . . . . . . . . . . . . . . . . . . 1 . Shots Hit Robots 388 | 8 33 19 . . 32 24 28 62 40 . . 21 51 16 . 27 13 14 . Core Hits 226 | 4 16 7 . 3 28 33 14 38 12 . . 5 15 32 . 8 3 7 1 Critical Kills 1 | . . . . . . . . . . . . . 1 . . . . . . Critical Parts Destroyed . | . . . . . . . . . . . . . . . . . . . . Critical Strikes 3 | 1 . . . . . . . . . . . . 1 . . . 1 . . Destroy 1 | . . . . . . . . . . . . . 1 . . . . . . Corrupt 2 | 1 . . . . . . . . . . . . . . . . 1 . . Melee Attacks 89 | . . . . . . . 9 4 6 . . 29 30 1 . 10 . . . Impact . | . . . . . . . . . . . . . . . . . . . . Slashing 71 | . . . . . . . . 1 4 . . 25 30 1 . 10 . . . Piercing . | . . . . . . . . . . . . . . . . . . . . Sneak Attacks 17 | . . . . . . . 4 . 3 . . 3 7 . . . . . . Combat Hostiles 3 | . . . . . . . . . . . . 3 . . . . . . . Follow-up Attacks . | . . . . . . . . . . . . . . . . . . . . Damage Inflicted 13091 | 115 572 425 . 139 1531 1230 587 2158 1084 . . 520 1876 1679 . 516 351 299 9 Guns 1571 | 80 389 . . . . . . . . . . . 437 82 . 83 243 257 . Cannons 4056 | . 60 425 . 20 575 453 415 1223 777 . . . . . . . 108 . . Explosions 4725 | 35 122 . . 119 956 777 172 905 . . . . . 1597 . . . 42 . Melee 2710 | . . . . . . . . 30 307 . . 520 1439 . . 414 . . . Ramming 29 | . 1 . . . . . . . . . . . . . . 19 . . 9 Kinetic 1356 | 44 147 . . . . 123 . 31 . . . . 437 82 . 83 243 166 . Thermal 3993 | 35 182 425 . 20 575 330 415 1192 777 . . . . . . . . 42 . Explosive 4526 | . . . . 119 956 777 172 905 . . . . . 1597 . . . . . Electromagnetic 477 | 36 242 . . . . . . . . . . . . . . . 108 91 . Impact . | . . . . . . . . . . . . . . . . . . . . Slashing 2710 | . . . . . . . . 30 307 . . 520 1439 . . 414 . . . Piercing . | . . . . . . . . . . . . . . . . . . . . Highest Corruption 19 | . . . . 2 5 5 5 5 4 4 4 9 19 19 . 2 . . . Average Corruption 7 | . . . . 1 4 5 5 5 2 4 4 8 12 19 . 1 . . . Corruption Purged . | . . . . . . . . . . . . . . . . . . . . Corruption Blocked 9 | . . . . . . . . . . . . . . . . . 8 1 . Effects 235 | . . . . . 27 26 17 43 3 5 5 23 57 26 . 3 . . . Message Errors 62 | . . . . . 8 9 4 8 2 1 3 8 13 5 . 1 . . . Matter Fused 64 | . . . . . 5 6 4 7 . 3 1 11 21 6 . . . . . Heat Flow Errors 12 | . . . . . 1 . 2 1 1 . . 1 3 2 . 1 . . . Energy Discharges 29 | . . . . . 5 2 3 9 . . 1 1 3 4 . 1 . . . Parts Rejected 3 | . . . . . 1 . . 2 . . . . . . . . . . . Parts Fused 3 | . . . . . . . . 1 . . . 1 1 . . . . . . Data Loss (minor) 32 | . . . . . 3 5 1 12 . 1 . 1 6 3 . . . . . Data Loss (major) 9 | . . . . . . 1 2 . . . . . 5 1 . . . . . Misfires 13 | . . . . . 4 1 . 1 . . . . 2 5 . . . . . Alerts 4 | . . . . . . . 1 1 . . . . 2 . . . . . . Weapon Failures 4 | . . . . . . 2 . 1 . . . . 1 . . . . . . Overload Shots . | . . . . . . . . . . . . . . . . . . . . Overflow Damage 503 | . . . . . 37 2 3 21 209 . . 13 188 21 . 4 5 . . Projectiles 34 | . . . . . 16 . 3 . 10 . . . . . . . 5 . . Explosions 65 | . . . . . 21 2 . 21 . . . . . 21 . . . . . Melee 404 | . . . . . . . . . 199 . . 13 188 . . 4 . . . Knockbacks 5 | . . . . . . 3 . 2 . . . . . . . . . . . Impact . | . . . . . . . . . . . . . . . . . . . . Kinetic 5 | . . . . . . 3 . 2 . . . . . . . . . . . Secondary . | . . . . . . . . . . . . . . . . . . . . Self-Inflicted Damage 264 | . 33 . . 28 . 77 . 81 . . . . . 34 . 7 . . 4 Shots 11 | . 1 . . 2 . 3 . 4 . . . . . 1 . . . . . Rammed 11 | . 1 . . . . . . . . . . . . . . 8 . . 2 Targets Rammed 11 | . 1 . . . . . . . . . . . . . . 8 . . 2 Kicked . | . . . . . . . . . . . . . . . . . . . . Crushed . | . . . . . . . . . . . . . . . . . . . . Highest Temperature 495 | . 33 120 . . 288 . 208 495 294 . . 117 198 260 . 132 . . . Average Temperature 90 | . 26 54 . . 76 . 40 124 104 . . 55 92 81 . 39 . . . Received Heat Transfer 2147 | . 33 90 . . 99 297 81 290 132 . . 127 63 162 . 279 . 358 136 Effects 7 | . . . . . 1 . . 3 3 . . . . . . . . . . Energy Bleed 1 | . . . . . . . . 1 . . . . . . . . . . . Interference 4 | . . . . . 1 . . . 3 . . . . . . . . . . Damage (major) 2 | . . . . . . . . 2 . . . . . . . . . . . Siege Activations . | . . . . . . . . . . . . . . . . . . . . Robots Corrupted . | . . . . . . . . . . . . . . . . . . . . Combat Hostiles . | . . . . . . . . . . . . . . . . . . . . Parts Fried 1 | . . . . . . . . . . . . . . . . . 1 . . Impact Corruptions . | . . . . . . . . . . . . . . . . . . . . Robots Melted . | . . . . . . . . . . . . . . . . . . . . Combat Hostiles . | . . . . . . . . . . . . . . . . . . . . Parts Melted 14 | 1 . . . . . . 1 2 7 . . 1 . 1 . 1 . . . Heat Transferred 6481 | 50 261 740 . 37 1036 533 740 1887 1147 . . . . . . . . 50 . Parts Sabotaged . | . . . . . . . . . . . . . . . . . . . . Parts Stolen . | . . . . . . . . . . . . . . . . . . . . Parts Stripped . | . . . . . . . . . . . . . . . . . . . . Power Chain Reactions 4 | 1 2 . . . . . . . . . . . . . . . . 1 . Missiles Intercepted . | . . . . . . . . . . . . . . . . . . . . Alert | -11 -10 -10 -10 -9 -8 -8 -8 -8 -7 -7 -7 -7 -7 -7 -6 -6 -5 -5 -5 ------- Run | Jun Mat Min Exi Min Mat Gar Mat Gar Fac Was Fac Gar Fac Gar Fac Gar Fac Upp Upp Peak Influence 917 | 15 149 106 . 93 213 609 413 917 593 142 101 502 314 430 225 365 248 . . Initial 480 | . 9 1 . . 35 58 296 72 480 142 99 70 242 17 225 157 174 . . Average 230 | 4 82 42 . 11 87 375 254 489 495 142 100 304 119 216 225 242 138 . . Maximum Alert Level 3 | . . . . . 1 2 2 3 2 . . 2 1 2 1 1 1 . . Low Security (%) 55 | 100 100 100 . 100 94 36 20 15 . 100 100 35 73 62 . 26 79 . . Level 1 25 | . . . . . 5 13 77 28 13 . . 31 26 19 100 73 20 . . Level 2 15 | . . . . . . 50 1 31 86 . . 32 . 18 . . . . . Level 3 3 | . . . . . . . . 24 . . . . . . . . . . . Level 4 . | . . . . . . . . . . . . . . . . . . . . Level 5 . | . . . . . . . . . . . . . . . . . . . . High Security . | . . . . . . . . . . . . . . . . . . . . Max Security . | . . . . . . . . . . . . . . . . . . . . Squads Dispatched 10 | . . . . . . . 2 . 2 . . . 6 . . . . . . Investigation 2 | . . . . . . . . . 1 . . . 1 . . . . . . Extermination 4 | . . . . . . . . . 1 . . . 3 . . . . . . Reinforcement 4 | . . . . . . . 2 . . . . . 2 . . . . . . Assault . | . . . . . . . . . . . . . . . . . . . . Garrison . | . . . . . . . . . . . . . . . . . . . . Intercept . | . . . . . . . . . . . . . . . . . . . . Searches Triggered . | . . . . . . . . . . . . . . . . . . . . Construction Impeded . | . . . . . . . . . . . . . . . . . . . . Haulers Reinforced . | . . . . . . . . . . . . . . . . . . . . Active Scanning Responses . | . . . . . . . . . . . . . . . . . . . . Cargo Convoy Interrupts . | . . . . . . . . . . . . . . . . . . . . Stealth | -11 -10 -10 -10 -9 -8 -8 -8 -8 -7 -7 -7 -7 -7 -7 -6 -6 -5 -5 -5 --------- Run | Jun Mat Min Exi Min Mat Gar Mat Gar Fac Was Fac Gar Fac Gar Fac Gar Fac Upp Upp Distress Signals 10 | . 1 . . . 5 . 3 . . . . . 1 . . . . . . Communications Jammed . | . . . . . . . . . . . . . . . . . . . . Distress Signals . | . . . . . . . . . . . . . . . . . . . . Times Spotted 248 | . 15 4 . 3 22 16 21 26 8 . . 27 16 17 . 33 6 21 13 Peak Tracking Total 12 | . 4 2 . 3 4 7 6 4 3 . . 7 3 6 . 7 2 5 12 Tactical Retreats 26 | . 1 . . . 1 4 2 2 . . . . . . . 5 . 10 1 Traps | -11 -10 -10 -10 -9 -8 -8 -8 -8 -7 -7 -7 -7 -7 -7 -6 -6 -5 -5 -5 ------- Run | Jun Mat Min Exi Min Mat Gar Mat Gar Fac Was Fac Gar Fac Gar Fac Gar Fac Upp Upp Traps Triggered 19 | . . . . . 3 . . 1 1 . . 4 4 2 . 3 1 . . Indirectly . | . . . . . . . . . . . . . . . . . . . . Trap Hack Attempts . | . . . . . . . . . . . . . . . . . . . . Triggered . | . . . . . . . . . . . . . . . . . . . . Disarmed . | . . . . . . . . . . . . . . . . . . . . Reprogrammed . | . . . . . . . . . . . . . . . . . . . . Reused . | . . . . . . . . . . . . . . . . . . . . Traps Extracted . | . . . . . . . . . . . . . . . . . . . . Installed . | . . . . . . . . . . . . . . . . . . . . Triggered . | . . . . . . . . . . . . . . . . . . . . Machines | -11 -10 -10 -10 -9 -8 -8 -8 -8 -7 -7 -7 -7 -7 -7 -6 -6 -5 -5 -5 ---------- Run | Jun Mat Min Exi Min Mat Gar Mat Gar Fac Was Fac Gar Fac Gar Fac Gar Fac Upp Upp Machines Disabled 16 | . 1 . . . 3 2 1 4 . . . 2 . 1 . 2 . . . Max in Single Turn 1 | . 1 . . . 1 1 . 1 . . . 1 . 1 . 1 . . . Garrison Relay 9 | . . . . . . 2 . 3 . . . 2 . 1 . 1 . . . Machines Repaired . | . . . . . . . . . . . . . . . . . . . . Machines Sabotaged . | . . . . . . . . . . . . . . . . . . . . Overloaded Fab Kills . | . . . . . . . . . . . . . . . . . . . . Hacking | -11 -10 -10 -10 -9 -8 -8 -8 -8 -7 -7 -7 -7 -7 -7 -6 -6 -5 -5 -5 --------- Run | Jun Mat Min Exi Min Mat Gar Mat Gar Fac Was Fac Gar Fac Gar Fac Gar Fac Upp Upp Machines Accessed 43 | . 8 . 1 . 5 1 4 2 3 . 2 3 7 . 2 1 4 . . Terminals 29 | . 7 . . . 4 1 2 2 1 . . 3 4 . 1 1 3 . . Fabricators 2 | . . . . . . . . . 1 . . . 1 . . . . . . Repair Stations . | . . . . . . . . . . . . . . . . . . . . Recycling Units 3 | . 1 . . . . . . . . . . . 1 . . . 1 . . Scanalyzers 3 | . . . . . . . 1 . 1 . 1 . . . . . . . . Garrison Access 5 | . . . . . 1 . 1 . . . 1 . 1 . 1 . . . . Total Hacks 101 | . 23 . 1 . 14 1 12 4 9 . 5 6 12 . 2 2 10 . . Successful 54 | . 10 . 1 . 6 . 7 1 6 . 4 2 8 . 1 2 6 . . Failed 45 | . 12 . . . 7 1 5 3 3 . 1 4 4 . 1 . 4 . . Catastrophic 10 | . 2 . . . 2 1 . 1 . . . 2 1 . . . 1 . . Database Lockouts 2 | . 1 . . . 1 . . . . . . . . . . . . . . Manual 41 | . 14 . 1 . 11 1 9 . . . . . 3 . . 1 1 . . Terminals 75 | . 20 . . . 13 1 9 4 2 . . 6 8 . 1 2 9 . . Fabricators 5 | . . . . . . . . . 3 . . . 2 . . . . . . Repair Stations . | . . . . . . . . . . . . . . . . . . . . Recycling Units 5 | . 3 . . . . . . . . . . . 1 . . . 1 . . Scanalyzers 9 | . . . . . . . 2 . 4 . 3 . . . . . . . . Garrison Access 6 | . . . . . 1 . 1 . . . 2 . 1 . 1 . . . . Terminal Hacks 25 | . 6 . 1 . 2 . 3 1 . . . 2 3 . . 1 6 . . Record 3 | . . . . . . . . . . . . . . . . . 3 . . Part Schematic 1 | . . . . . . . 1 . . . . . . . . . . . . Robot Analysis 5 | . 2 . . . 1 . 1 . . . . . . . . . 1 . . Prototype ID Bank 2 | . 1 . . . . . . . . . . . . . . . 1 . . Open DSF 1 | . . . . . . . . . . . . . 1 . . . . . . Branch Access Points 1 | . . . . . . . . . . . . . . . . . 1 . . Emergency Access Points 3 | . . . . . . . . 1 . . . 1 . . . 1 . . . Unreport Threat 2 | . . . . . 1 . 1 . . . . . . . . . . . . Recall Extermination 1 | . . . . . . . . . . . . . 1 . . . . . . Recall Reinforcements 1 | . . . . . . . . . . . . . 1 . . . . . . Hauler Manifests 1 | . 1 . . . . . . . . . . . . . . . . . . Registered Components 1 | . 1 . . . . . . . . . . . . . . . . . . Zone Layout 1 | . 1 . . . . . . . . . . . . . . . . . . Security Stations 1 | . . . . . . . . . . . . 1 . . . . . . . EX-Prototype ID Bank 1 | . . . 1 . . . . . . . . . . . . . . . . Fabricator Hacks 4 | . . . . . . . . . 2 . . . 2 . . . . . . Load Schematic 2 | . . . . . . . . . 1 . . . 1 . . . . . . Build 2 | . . . . . . . . . 1 . . . 1 . . . . . . Repair Station Hacks . | . . . . . . . . . . . . . . . . . . . . Recycling Unit Hacks 1 | . . . . . . . . . . . . . 1 . . . . . . Retrieve Components 1 | . . . . . . . . . . . . . 1 . . . . . . Scanalyzer 8 | . . . . . . . 2 . 4 . 2 . . . . . . . . Insert Component 4 | . . . . . . . 1 . 2 . 1 . . . . . . . . Analyze 4 | . . . . . . . 1 . 2 . 1 . . . . . . . . Garrison Access Hacks 6 | . . . . . 1 . 1 . . . 2 . 1 . 1 . . . . Unlock Access 5 | . . . . . 1 . 1 . . . 1 . 1 . 1 . . . . Coupler Status 1 | . . . . . . . . . . . 1 . . . . . . . . Unauthorized Hacks 10 | . 4 . . . 3 . 1 . . . . . 1 . . 1 . . . Terminals 9 | . 3 . . . 3 . 1 . . . . . 1 . . 1 . . . Botnet 5 | . 1 . . . 2 . 1 . . . . . 1 . . . . . . Detonate 1 | . . . . . . . . . . . . . . . . 1 . . . Operators 3 | . 2 . . . 1 . . . . . . . . . . . . . . Fabricators . | . . . . . . . . . . . . . . . . . . . . Repair Stations . | . . . . . . . . . . . . . . . . . . . . Recycling Units 1 | . 1 . . . . . . . . . . . . . . . . . . Reject 1 | . 1 . . . . . . . . . . . . . . . . . . Scanalyzers . | . . . . . . . . . . . . . . . . . . . . Garrison Access . | . . . . . . . . . . . . . . . . . . . . Data Cores Recovered 1 | . . . . . 1 . . . . . . . . . . . . . . Used . | . . . . . . . . . . . . . . . . . . . . Hacking Detections 36 | . 8 . . . 4 1 4 2 3 . 1 2 6 . 1 1 3 . . Full Trace Events 2 | . . . . . . . . . 1 . . . 1 . . . . . . Feedback Events . | . . . . . . . . . . . . . . . . . . . . Feedback Blocked . | . . . . . . . . . . . . . . . . . . . . Robot Schematics Acquired . | . . . . . . . . . . . . . . . . . . . . Robots Built . | . . . . . . . . . . . . . . . . . . . . Authchips . | . . . . . . . . . . . . . . . . . . . . Time . | . . . . . . . . . . . . . . . . . . . . Total Robot Build Rating . | . . . . . . . . . . . . . . . . . . . . Part Schematics Acquired 5 | . . . . . . . 2 . 2 . 1 . . . . . . . . Parts Built 2 | . . . . . . . . . 1 . . . 1 . . . . . . Authchips . | . . . . . . . . . . . . . . . . . . . . Time 109 | . . . . . . . . . 25 . . . 84 . . . . . . Total Part Build Rating 5 | . . . . . . . . . 1 . . . 4 . . . . . . Parts Repaired . | . . . . . . . . . . . . . . . . . . . . Time . | . . . . . . . . . . . . . . . . . . . . Parts Recycled . | . . . . . . . . . . . . . . . . . . . . Recycled Matter . | . . . . . . . . . . . . . . . . . . . . Retrieved Matter . | . . . . . . . . . . . . . . . . . . . . Retrieved Components 3 | . . . . . . . . . . . . . 3 . . . . . . Parts Scanalyzed 4 | . . . . . . . 1 . 2 . 1 . . . . . . . . Part Schematics Acquired 4 | . . . . . . . 1 . 2 . 1 . . . . . . . . Parts Damaged . | . . . . . . . . . . . . . . . . . . . . Bothacking | -11 -10 -10 -10 -9 -8 -8 -8 -8 -7 -7 -7 -7 -7 -7 -6 -6 -5 -5 -5 ------------ Run | Jun Mat Min Exi Min Mat Gar Mat Gar Fac Was Fac Gar Fac Gar Fac Gar Fac Upp Upp Used RIF Installer 5 | . . . . . . 1 . 1 . . . 1 . 1 . 1 . . . Hotswap 1 | . . . . . . . . 1 . . . . . . . . . . . Patrol Navigation 1 | . . . . . . . . . . . . 1 . . . . . . . Program Shield 1 | . . . . . . . . . . . . . . 1 . . . . . Autooverride 1 | . . . . . . . . . . . . . . . . 1 . . . Robots Hacked 41 | . . . . . . . 6 1 3 . . 11 5 4 . 8 1 2 . Non-combat 8 | . . . . . . . 3 . 2 . . . 2 . . 1 . . . Combat 33 | . . . . . . . 3 1 1 . . 11 3 4 . 7 1 2 . Autooverrided 1 | . . . . . . . . . . . . . . . . 1 . . . Robot Hacks Applied 52 | . . . . . . . 7 2 6 . . 12 6 4 . 12 1 2 . parse_system 11 | . . . . . . . 2 1 3 . . . 2 . . 2 . 1 . find_chute 1 | . . . . . . . . . 1 . . . . . . . . . . drop_inventory 1 | . . . . . . . . . . . . . 1 . . . . . . find_station 1 | . . . . . . . . . 1 . . . . . . . . . . map_route 1 | . . . . . . . 1 . . . . . . . . . . . . redirect_shields 1 | . . . . . . . . . . . . . . . . 1 . . . find_garrison 1 | . . . . . . . 1 . . . . . . . . . . . . scatter_targeting 1 | . . . . . . . . . . . . 1 . . . . . . . disrupt_area 1 | . . . . . . . . . . . . . . 1 . . . . . overload_power 3 | . . . . . . . . . . . . 1 . 1 . 1 . . . overwrite_iff 13 | . . . . . . . . 1 1 . . 6 2 . . 2 . 1 . streamctrl_high 4 | . . . . . . . . . . . . 1 . 1 . 2 . . . formatsys_high 13 | . . . . . . . 3 . . . . 3 1 1 . 4 1 . . Relay Couplers Released 39 | . . . . . . 7 . 13 . . . 12 . 4 . 3 . . . Machine Destruction 35 | . . . . . . 7 . 13 . . . 8 . 4 . 3 . . . Programmers 4 | . . . . . . . . . . . . 4 . . . . . . . Attached 14 | . . . . . . 1 2 2 1 . . 3 1 . . 1 3 . . Fabnet Peak Effective % . | . . . . . . . . . . . . . . . . . . . . Robots Rewired 3 | . . . . . . . . 3 . . . . . . . . . . . Allies Hacked 1 | . . . . . . . . . . . . 1 . . . . . . . Hacks Repelled . | . . . . . . . . . . . . . . . . . . . . Allies | -11 -10 -10 -10 -9 -8 -8 -8 -8 -7 -7 -7 -7 -7 -7 -6 -6 -5 -5 -5 -------- Run | Jun Mat Min Exi Min Mat Gar Mat Gar Fac Was Fac Gar Fac Gar Fac Gar Fac Upp Upp Total Allies 30 | . . . . . . . 3 4 1 . . 9 3 2 . 6 1 1 . Largest Group 3 | . . . . . . . 2 3 1 . . 3 1 2 . 2 1 1 . Highest-Rated Group 64 | . . . . . . . 32 37 16 . . 64 16 37 . 61 49 49 . Highest-Rated Ally 49 | . . . . . . . 21 21 16 . . 32 16 32 . 32 49 49 . Total Orders . | . . . . . . . . . . . . . . . . . . . . Ally Attacks 169 | . . . . . . . 30 22 12 . . 49 6 16 . 31 2 1 . Total Damage 3565 | . . . . . . . 328 324 42 . . 1234 86 416 . 1053 57 25 . Kills 25 | . . . . . . . 2 4 . . . 12 . 3 . 4 . . . Allies Corrupted 1 | . . . . . . . . . . . . . . . . . 1 . . Allies Melted 1 | . . . . . . . . . . . . . . 1 . . . . . Intel | -11 -10 -10 -10 -9 -8 -8 -8 -8 -7 -7 -7 -7 -7 -7 -6 -6 -5 -5 -5 ------- Run | Jun Mat Min Exi Min Mat Gar Mat Gar Fac Was Fac Gar Fac Gar Fac Gar Fac Upp Upp Robot Analysis Total 5 | . 2 . . . 1 . 1 . . . . . . . . . 1 . . Derelict Logs Recovered 7 | . . 2 . . . . . . . . . . . . . . . 3 2 Drone Launches . | . . . . . . . . . . . . . . . . . . . . Drone Recoveries . | . . . . . . . . . . . . . . . . . . . . Exploration | -11 -10 -10 -10 -9 -8 -8 -8 -8 -7 -7 -7 -7 -7 -7 -6 -6 -5 -5 -5 ------------- Run | Jun Mat Min Exi Min Mat Gar Mat Gar Fac Was Fac Gar Fac Gar Fac Gar Fac Upp Upp Turns Passed 12816 | 112 868 697 516 128 1036 860 922 1596 501 187 204 763 1536 590 217 602 726 647 108 Spaces Moved 8323 | 58 466 408 322 72 513 463 482 844 226 155 165 491 1063 280 147 350 792 823 203 Core 734 | 3 . . . . . . . . . . . . . . . 79 58 391 203 Treads 3638 | . 415 408 322 72 513 463 482 844 119 . . . . . . . . . . Legs 111 | 55 51 . . . . . . . . . . . . . 5 . . . . Wheels 3443 | . . . . . . . . . 107 155 165 491 1063 280 142 271 373 396 . Hover 89 | . . . . . . . . . . . . . . . . . 53 36 . Flight 308 | . . . . . . . . . . . . . . . . . 308 . . Fastest Speed 34 | 50 120 160 160 160 160 160 152 152 105 120 120 105 105 125 115 50 34 50 50 Average Speed 128 | 117 155 160 160 160 160 160 166 158 163 120 120 113 118 158 143 117 72 72 51 Slowest Speed 320 | 120 160 160 160 160 160 160 232 232 320 120 120 155 150 175 260 145 117 200 100 Overloaded Moves . | . . . . . . . . . . . . . . . . . . . . Propulsion Burnouts . | . . . . . . . . . . . . . . . . . . . . Robots Hopped . | . . . . . . . . . . . . . . . . . . . . Cave-ins Triggered . | . . . . . . . . . . . . . . . . . . . . Exploration Rate (%) 44 | 4 90 96 73 15 48 32 49 74 6 71 4 70 34 40 3 37 16 95 34 Regions Visited 19 Branch Regions 5 Pre-discovered Areas 3 | . . 2 . . . . . . . . . . . . . . . 1 . Known Exits Taken 6 | . . . . . 1 . 1 . . . 1 . 1 . 1 . 1 . . Unknown Exits Taken 6 | 1 1 1 1 1 . . . . . . . . . . . . . 1 . Scrap Searched 3 | . . 2 . . . . . . . . . . . . . . . 1 . Spaces Dug 71 | . . . . . 10 33 . . 1 . . . 2 23 . . 2 . . Terrain Destroyed 352 | 3 6 . . 32 63 50 10 62 1 . . . 3 114 . . 3 5 . Melee 3 | . . . . . . . . . 1 . . . 2 . . . . . . Projectile 7 | . . . . . . . . . . . . . 1 . . . 3 3 . AOE 342 | 3 6 . . 32 63 50 10 62 . . . . . 114 . . . 2 . Terrain Rammed . | . . . . . . . . . . . . . . . . . . . . Walls Destroyed . | . . . . . . . . . . . . . . . . . . . . Machines Disabled . | . . . . . . . . . . . . . . . . . . . . Actions | -11 -10 -10 -10 -9 -8 -8 -8 -8 -7 -7 -7 -7 -7 -7 -6 -6 -5 -5 -5 --------- Run | Jun Mat Min Exi Min Mat Gar Mat Gar Fac Was Fac Gar Fac Gar Fac Gar Fac Upp Upp Total 9811 | 82 561 426 323 78 659 535 553 996 300 156 170 662 1275 398 152 512 919 848 206 Wait 627 | 2 40 4 . . 86 15 19 24 16 . . 87 97 65 . 105 65 2 . Move 8308 | 57 465 407 321 71 513 461 482 843 226 154 165 490 1062 279 147 349 791 822 203 Hop . | . . . . . . . . . . . . . . . . . . . . Pick Up 97 | 7 13 . 1 . 6 6 5 15 7 2 . 10 7 4 . 2 12 . . Fast Attach 62 | 7 4 . . . 2 2 3 3 3 . 2 5 10 3 3 2 12 1 . Attach 50 | . 1 . . . 4 2 4 10 4 . . 6 2 2 . 4 8 2 1 Detach 7 | . . . . . . . . 1 . . . 1 2 . . . 2 1 . Swap 82 | . 1 . . 4 13 9 8 10 5 . 1 5 4 12 . 7 1 2 . Drop 68 | . 10 . 1 . 3 7 3 9 3 . 2 8 7 4 2 1 7 1 . Fire 361 | 9 26 15 . 3 32 33 20 60 30 . . 13 38 20 . 24 21 17 . Melee 89 | . . . . . . . 9 4 6 . . 29 30 1 . 10 . . . Ram 10 | . . . . . . . . . . . . . . . . 8 . . 2 Kick . | . . . . . . . . . . . . . . . . . . . . Crush 1 | . 1 . . . . . . . . . . . . . . . . . . Escape Stasis 32 | . . . . . . . . . . . . 8 16 8 . . . . . Rewire 17 | . . . . . . . . 17 . . . . . . . . . . . Trap . | . . . . . . . . . . . . . . . . . . . . Miscellaneous . | . . . . . . . . . . . . . . . . . . . . Route ------- -11/Junkyard -10/Materials (discovered 4 exits: [*Mat x3] / [*Min]) -10/Mines (discovered 3 exits: [*Mat x2] / *Exi) -10/Exiles -9/Mines -8/Materials (discovered 3 exits: *Fac x2 / Gar) -8/Garrison -8/Materials (discovered 2 exits: *Fac / Gar) -8/Garrison (discovered 4 exits: *Fac x3 / [*Mat]) -7/Factory -7/Waste -7/Factory -7/Garrison (discovered 3 exits: *Fac x3) -7/Factory (discovered 4 exits: *Fac x3 / Gar) -7/Garrison -6/Factory -6/Garrison -5/Factory (discovered 2 exits: *Upp x2) -5/Upper Caves -5/Upper Caves History --------- Turn | Location | Event 33 | -11/Junkyard | Discovered new exit (range 15) 113 | -11/Junkyard | Entered Materials 193 | -10/Materials | Discovered new exit (range 11) 315 | -10/Materials | Build established: Mutant 349 | -10/Materials | Discovered new exit (range 16) 350 | -10/Materials | Central database locked down 478 | -10/Materials | Discovered new exit (range 16) 789 | -10/Materials | Discovered new exit (range 9) 981 | -10/Materials | Entered Mines 982 | -10/Mines | Learned location of Storage (-8) 1071 | -10/Mines | Discovered new exit (range 6) 1124 | -10/Mines | Discovered new exit (range 9) 1297 | -10/Mines | Received a Rocket Launcher from a helpful Derelict 1303 | -10/Mines | Learned Materials interactive machine intel 1671 | -10/Mines | Deemed a non-threat by the Exiles lab entrance 1671 | -10/Mines | Discovered new exit (range 5) 1678 | -10/Mines | Entered Exiles 1720 | -10/Exiles | Met 8R-AWN 1747 | -10/Exiles | Met EX-HEX 1802 | -10/Exiles | Met EX-BIN 1821 | -10/Exiles | Aligned with FarCom system 1822 | -10/Exiles | Given EX-Vault access code 1859 | -10/Exiles | Opened EX-Vault 1871 | -10/Exiles | Found Longsword +1 1904 | -10/Exiles | Warned to stay clear of 0b10 Research branches 2016 | -10/Exiles | Met EX-DEC 2173 | -10/Exiles | Discovered new exit (range 14) 2194 | -10/Exiles | Left Exiles lab with Longsword +1 2194 | -10/Exiles | Entered Mines 2303 | -9/Mines | Discovered new exit (range 8) 2322 | -9/Mines | Entered Materials 2322 | -8/Materials | Evolved 4 slots: Propulsion x1, Utility x3 2323 | -8/Materials | Loaded intel: 19 interactive machine locations 2592 | -8/Materials | Build established: Skirmisher 2689 | -8/Materials | Discovered new exit (range 12) 3257 | -8/Materials | Central database locked down 3280 | -8/Materials | Discovered new exit (range 13) 3358 | -8/Materials | Identified exit to Garrison 3358 | -8/Materials | Entered Garrison 3420 | -8/Garrison | Triggered checkpoint 3460 | -8/Garrison | Garrison Relay disabled 3671 | -8/Garrison | Build established: Mutant 3889 | -8/Garrison | Discovered new exit (range 12) 3939 | -8/Garrison | Triggered checkpoint 3983 | -8/Garrison | Build established: Scavenger-Mutant 3986 | -8/Garrison | Installed Relay Interface Framework 3998 | -8/Garrison | Garrison Relay disabled 4218 | -8/Garrison | Entered Materials 4995 | -8/Materials | Build established: Mutant 5077 | -8/Materials | Discovered new exit (range 12) 5140 | -8/Materials | Identified exit to Garrison 5140 | -8/Materials | Entered Garrison 5140 | -8/Garrison | Accompanied by 1 ally 5272 | -8/Garrison | Triggered checkpoint 5299 | -8/Garrison | Garrison Relay disabled 5352 | -8/Garrison | Triggered checkpoint 5429 | -8/Garrison | Spotted B-75 Beast 5429 | -8/Garrison | Spotted B-75 Beast 5625 | -8/Garrison | Discovered new exit (range 15) 5760 | -8/Garrison | Triggered checkpoint 5901 | -8/Garrison | Discovered new exit (range 10) 5952 | -8/Garrison | Triggered checkpoint 5986 | -8/Garrison | Garrison Relay disabled 6106 | -8/Garrison | Triggered checkpoint 6364 | -8/Garrison | Triggered checkpoint 6447 | -8/Garrison | Discovered new exit (range 8) 6476 | -8/Garrison | Triggered checkpoint 6533 | -8/Garrison | Discovered new exit (range 5) 6535 | -8/Garrison | Lost 3 parts (1p1n1w) 6642 | -8/Garrison | Triggered checkpoint 6655 | -8/Garrison | Expanded RIF knowledge: Hotswap 6681 | -8/Garrison | Garrison Relay disabled 6736 | -8/Garrison | Entered Factory 6736 | -7/Factory | Accompanied by 1 ally 6736 | -7/Factory | Evolved 2 slots: Utility x2 6961 | -7/Factory | Fabricated Datajack (x1) 7183 | -7/Factory | Discovered new exit (range 2) 7237 | -7/Factory | Sucked down chute 7237 | -7/Factory | Entered Waste 7237 | -7/Waste | The area was eerily silent 7271 | -7/Waste | Build established: Bothacker-Mutant 7412 | -7/Waste | Discovered new exit (range 10) 7424 | -7/Waste | Entered Factory 7628 | -7/Factory | Identified exit to Garrison 7628 | -7/Factory | Entered Garrison 7668 | -7/Garrison | Triggered checkpoint 7799 | -7/Garrison | Discovered new exit (range 7) 7848 | -7/Garrison | Triggered checkpoint 7899 | -7/Garrison | Learned Factory security intel 7951 | -7/Garrison | Garrison Relay disabled 7977 | -7/Garrison | Garrison Relay disabled 8036 | -7/Garrison | P-70 Sage assimilated allied Trooper 4a 8069 | -7/Garrison | Lost 3 parts (1p2n) 8070 | -7/Garrison | Triggered checkpoint 8106 | -7/Garrison | Triggered checkpoint 8221 | -7/Garrison | Expanded RIF knowledge: Patrol Navigation 8227 | -7/Garrison | Discovered new exit (range 10) 8360 | -7/Garrison | Discovered new exit (range 10) 8391 | -7/Garrison | Entered Factory 8547 | -7/Factory | Identified exit to DSF 8598 | -7/Factory | Build established: Mutant 8668 | -7/Factory | Discovered new exit (range 6) 8896 | -7/Factory | Discovered new exit (range 10) 9275 | -7/Factory | System corruption reached 10% 9303 | -7/Factory | Core integrity fell below 50% 9626 | -7/Factory | Discovered new exit (range 14) 9783 | -7/Factory | Fabricated Remote Datajack (x1) 9870 | -7/Factory | Build established: Bothacker-Mutant 9922 | -7/Factory | Identified exit to Garrison 9927 | -7/Factory | Entered Garrison 9927 | -7/Garrison | Accompanied by 1 ally 10022 | -7/Garrison | Triggered checkpoint 10064 | -7/Garrison | Triggered checkpoint 10075 | -7/Garrison | Expanded RIF knowledge: Program Shield 10111 | -7/Garrison | Garrison Relay disabled 10318 | -7/Garrison | Triggered checkpoint 10321 | -7/Garrison | Triggered checkpoint 10362 | -7/Garrison | Build established: Botlord-Mutant 10397 | -7/Garrison | Triggered checkpoint 10437 | -7/Garrison | Destroyed 8 combat bots 10505 | -7/Garrison | Discovered new exit (range 8) 10517 | -7/Garrison | Entered Factory 10517 | -6/Factory | Evolved 2 slots: Power x1, Utility x1 10734 | -6/Factory | Identified exit to Garrison 10734 | -6/Factory | Entered Garrison 10834 | -6/Garrison | Triggered checkpoint 10854 | -6/Garrison | Garrison Relay disabled 10956 | -6/Garrison | Expanded RIF knowledge: Autooverride 11259 | -6/Garrison | Triggered checkpoint 11309 | -6/Garrison | Core integrity fell below 50% 11332 | -6/Garrison | Discovered new exit (range 10) 11336 | -6/Garrison | Entered Factory 11336 | -5/Factory | Evolved 2 slots: Utility x2 11345 | -5/Factory | Lost 12 parts (2p1n5u4w) 11377 | -5/Factory | Identified exit to Upper Caves 11642 | -5/Factory | Build established: Bothacker-Mutant 12062 | -5/Factory | Entered Upper Caves 12064 | -5/Upper Caves | Attracted the attention of an 0b10 checkpoint 12124 | -5/Upper Caves | Learned location of 1 exit from Factory 12204 | -5/Upper Caves | Attracted the attention of an 0b10 outpost 12240 | -5/Upper Caves | Lost 3 parts (1u2w) 12302 | -5/Upper Caves | Learned Factory terminal intel 12499 | -5/Upper Caves | Lost 3 parts (2n1u) 12545 | -5/Upper Caves | Lost 3 parts (1p1n1u) 12655 | -5/Upper Caves | Encountered a Warlord checkpoint 12705 | -5/Upper Caves | Discovered new exit (range 8) 12709 | -5/Upper Caves | Entered another Upper Caves area 12715 | -5/Upper Caves | Learned Factory stockpile data 12742 | -5/Upper Caves | Learned Factory terminal intel 12781 | -5/Upper Caves | Core integrity fell below 50% 12797 | -5/Upper Caves | Acquired the password to a Derelict Tinkerer's latest research 12799 | -5/Upper Caves | Core integrity fell below 20% 12817 | -5/Upper Caves | Destroyed by S-27 Virus with Autogun Last Messages --------------- LOCATION=UNKNOWN GOAL=ESCAPE 12715_ Acquired derelict log, extracted data. Data stored: Factory stockpile data. 12742_ Acquired derelict log, extracted data. Data stored: Factory terminal intel. 12779_ Q8-8BK(S) destroyed. 12785_ Relay Coupler [Duelist] destroyed. 12785_ Remote Shield destroyed. 12791_ Exp. Heat Sink destroyed. 12794_ Slammed into S-27 Virus. 12797_ 8M-O1M(c): "They're coming to take away my research again!" 12797_ 8M-O1M(c): "You're not Unaware, and look menacing enough... take it and get as far away from here as you can. Quickly!" 12797_ 8M-O1M(c): "The password is \\AEW9." 12797_ Slammed into S-27 Virus. 12797_ Destabilizing: System interference. 12797_ Imp. Corruption Screen temporarily disabled. 12797_ Armor Integrity Analyzer temporarily disabled. 12798_ Relay Coupler [Sentry] destroyed. Map ----- +----------------------------------------------------+ | | | | | ?????????????????????????????????????????????????? | | ?????????????????????????????????????????????????? | | ?????????????????????????????????????????????????? | | ?????????????????????????????????????????????????? | | ?????????????????????????????????????????????????? | | ?????????????????????????????????????????????????? | | ?????????????????????????????????????????????????? | | ?????????????????????????????????????????????????? | | ?????????????????????????????????????????????????? | | ?????????????????????????????????????????????????? | | ?????????????????????????????????????????????????? | | ?????????????????????????????????????????????????? | | ?????????????????????????????????????????????????? | | ?????????????????????????????????????????????????? | | ?????????????????????????????????????????????????? | | ?????????????????????######??????????????????????? | | ?????????????????????# """"??????????????????????? | | ?????????????????????#" ""?##???????????????????? | | ?????????????????????#"" "# #???????????????????? | | ??????????????????????# "# #??????????####?????# | | ?????????????????????## "# #?????????## ##???# | | ?????????????????????#"" " #?????????# #### | | ?????????????????????# #?????????## | | ?????????????????????# @###????????## | | ?????????????????????# s##??????##### | | ?????????????????????# #???????# # | | ?????????????????????# #???????# # | | ?????????????????????# #???????# ####### # | | ?????????????????????## ##??????# #?????# ## ## | | ??????????????????????## ##?????# #?????# ##??#? | | ???????????????????????## ##????# #?????# #???? | | ???????????????????????## ###### #?????# ##??? | | ???????????????????????# #????## #### | | ???????????????????????# ###### #??### | | ???????????????????????## #????# #??# | | ????????????????????????# ???? ##"""# ## | | ????????????????????????# #???# #"" " ####### | | ???????????????????????? #???# #X # #?????? | | ??????????????????????? #???# ##"# ## ###???? | | ??????????????????????# #???# #??# ## ##??? | | ??????????????????????## #???? ???### ##?? | | ???????????????????????## #???? ?????## #?? | | ????????????????????????### #????#?????## #?? | | ??????????????????????????? #??????????# ##?? | | ??????????????????????????? #?????????# ###??# | | ??????????????????????????? ??????????# ##????# | | ??????????????????????????? ??????????#####?????# | | ?????????????????????????????????????????????????# | +----------------------------------------------------+ Best States ------------- Heat Dissipation 67 Energy Generation 19 Energy Capacity 315 Matter Stores 300 Matter Capacity 300 Sight Range 16 Terrain Scan Range 16 Terrain Scan Density 85 Corruption Block 15 Armor Coverage 600 Resistance: KI 30 Resistance: TH 10 Resistance: EM 20 Melee Speed Boost 20 Evasion (%) 63 Target Analysis 5 Armor Integrity Analysis 30 Recoil Reduction 3 Offensive Hacking 24 Relay Coupler Types 5 Relay Coupler Value 117 Item Schematics ----------------- Particle Cannon | -8/Materials | Scanalyzed Datajack | -8/Materials | Hacked Lyr. Light Armor Plating | -7/Factory | Scanalyzed Arm. Huge Wheel | -7/Factory | Scanalyzed Remote Datajack | -7/Factory | Scanalyzed Robot Schematics ------------------ None Fabricated ------------ Datajack | x1 | -7/Factory Remote Datajack | x1 | -7/Factory Alien Tech Used ----------------- None Achievements -------------- Infiltrator Maybe Next Time I'll Detach My Launcher Challenges ------------ None Game ------ Seed TitaniumReactionLeg Manual? 0 Play Time 02:44:43 Cumulative 51.9 hours Start 2023.10.26 @ 21:17:03 End 2023.10.27 @ 22:25:14 Sessions 3 Manual Loads 0 Difficulty Rogue Special Mode None Game No. 31 Rogue 31 Adventurer 0 Explorer 0 Win Type - Total 1 Types 1/0/0/0/0/0/0/0/0 Lore% 32 Gallery% 41 Achievement% 34 Wizard Run 0 Options --------- ASCII 1 Keyboard 0 Movement Mouse Keybinds 0 Fullscreen 1 Font 24/Smallcaps Map View 76x50 Tactical HUD 1 Map Filters NONE Filters NONE Steam 1 RUN: 35e5fb77-d7c5-4155-97b1-7c71a82856cd